bitfinex/quotes_BTCUSD_20240617
["timestamp","ask_amount","ask_price","bid_price","bid_amount"]
[1718582401213,0.19015,66677.0,66676.0,0.69238626]
[1718582401411,0.13125,66677.0,66676.0,0.69238626]
[1718582404891,0.00185,66677.0,66676.0,0.62734257]
[1718582405094,0.13765,66677.0,66676.0,0.62734257]
[1718582405275,0.18745,66677.0,66676.0,0.62734257]
[1718582405497,0.05165,66677.0,66676.0,0.62734257]
[1718582405822,0.05165,66677.0,66676.0,0.7097976]
[1718582406193,0.00185,66677.0,66676.0,0.7097976]
[1718582406604,0.00185,66677.0,66676.0,0.74439972]
[1718582406953,0.00185,66677.0,66676.0,0.7097976]
[1718582407397,0.00185,66677.0,66676.0,0.74439972]
[1718582407779,0.00185,66677.0,66676.0,0.91069972]
[1718582408114,0.00185,66677.0,66676.0,0.92817029]
[1718582408319,0.00185,66677.0,66676.0,1.04992748]
[1718582409541,0.00185,66677.0,66676.0,1.03245691]
[1718582409744,0.00185,66677.0,66676.0,1.04992748]
[1718582411834,0.00185,66677.0,66676.0,1.04951342]
[1718582412439,0.00185,66677.0,66676.0,1.20160121]
[1718582415495,0.00185,66677.0,66676.0,1.19979862]
[1718582415900,0.00185,66677.0,66676.0,1.13689862]
[1718582416106,0.00185,66677.0,66676.0,1.11942805]
[1718582416312,0.00185,66677.0,66676.0,1.00442593]
[1718582416669,0.00185,66677.0,66676.0,1.05649862]
[1718582417303,0.00185,66677.0,66676.0,1.03902805]
[1718582418147,0.00185,66677.0,66676.0,0.91948751]
[1718582418344,0.00185,66677.0,66676.0,0.80398229]
[1718582418640,0.13725,66677.0,66676.0,0.62734257]
[1718582419748,0.13977943,66677.0,66676.0,0.62734257]
[1718582419966,0.13725,66677.0,66676.0,0.62734257]
[1718582420184,0.13977943,66677.0,66676.0,0.62734257]
[1718582420389,0.13725,66677.0,66676.0,0.62734257]
[1718582420602,0.13725,66677.0,66676.0,0.69363054]
[1718582420802,0.13977943,66677.0,66676.0,0.69363054]
[1718582421220,0.13977943,66677.0,66676.0,0.62734257]
[1718582421862,0.13725,66677.0,66676.0,0.62734257]
[1718582422075,0.13977943,66677.0,66676.0,0.62734257]
[1718582422491,0.14287943,66677.0,66676.0,0.62734257]
[1718582422915,0.14035,66677.0,66676.0,0.62734257]
[1718582423121,0.14287943,66677.0,66676.0,0.62734257]
[1718582423538,0.17514559,66677.0,66676.0,0.62734257]
[1718582424086,0.17414559,66677.0,66676.0,0.61534257]
[1718582424503,0.27414559,66677.0,66676.0,0.61534257]
[1718582424707,0.27514559,66677.0,66676.0,0.62734257]
[1718582425078,0.27414559,66677.0,66676.0,0.61534257]
[1718582425486,0.32394559,66677.0,66676.0,0.61734257]
[1718582425775,0.32394559,66677.0,66676.0,0.60334257]
[1718582426154,0.27414559,66677.0,66676.0,0.61534257]
[1718582426352,0.27414559,66677.0,66676.0,0.60134257]
[1718582426353,0.32394559,66677.0,66676.0,0.60134257]
[1718582426783,0.32594559,66677.0,66676.0,0.60134257]
[1718582427180,0.29367943,66677.0,66676.0,0.60134257]
[1718582427381,0.32602747,66677.0,66676.0,0.60134257]
[1718582427699,0.33002747,66677.0,66676.0,0.60134257]
[1718582428327,0.28022747,66677.0,66676.0,0.60134257]
[1718582428563,0.33002747,66677.0,66676.0,0.60134257]
[1718582429781,0.3749258,66677.0,66676.0,0.60134257]
[1718582430191,0.33002747,66677.0,66676.0,0.60134257]
[1718582430391,1.49015868,66677.0,66676.0,0.60134257]
[1718582430631,1.4247608,66677.0,66676.0,0.60134257]
[1718582430839,1.67981547,66677.0,66676.0,0.60134257]
[1718582431005,1.74521335,66677.0,66676.0,0.60134257]
[1718582431228,1.81256085,66677.0,66676.0,0.60134257]
[1718582432278,1.96464864,66677.0,66676.0,0.60134257]
[1718582432397,2.01464864,66677.0,66676.0,0.60134257]
[1718582432595,2.03709781,66677.0,66676.0,0.00142257]
[1718582433213,1.94730114,66677.0,66676.0,0.00142257]
[1718582433415,2.03709781,66677.0,66676.0,0.00142257]
[1718582433728,2.03509781,66677.0,66676.0,0.00142257]
[1718582433941,1.94930114,66677.0,66676.0,0.00142257]
[1718582434256,1.93913317,66677.0,66676.0,0.00142257]
[1718582434465,1.98893317,66677.0,66676.0,0.00142257]
[1718582434693,1.93913317,66677.0,66676.0,0.00142257]
[1718582434905,1.89530114,66677.0,66676.0,0.00142257]
[1718582435350,1.96951533,66677.0,66676.0,0.00242257]
[1718582435972,1.85431745,66677.0,66676.0,0.00242257]
[1718582436179,1.83690326,66677.0,66676.0,0.00242257]
[1718582436430,1.88169862,66677.0,66676.0,0.00242257]
[1718582436838,1.83690326,66677.0,66676.0,0.00242257]
[1718582437047,1.90230114,66677.0,66676.0,0.00242257]
[1718582437247,1.94708753,66677.0,66676.0,0.00242257]
[1718582438697,1.90230114,66677.0,66676.0,0.00242257]
[1718582440311,1.90238879,66677.0,66676.0,0.00242257]
[1718582441281,1.78719091,66677.0,66676.0,0.00242257]
[1718582441498,1.83699091,66677.0,66676.0,0.00242257]
[1718582442316,1.83697562,66677.0,66676.0,0.00242257]
[1718582442545,0.8941524,66677.0,66676.0,0.00242257]
[1718582442780,0.94648183,66677.0,66676.0,0.00242257]
[1718582443395,1.24643483,66677.0,66676.0,0.00242257]
[1718582446140,1.38343483,66677.0,66676.0,0.00242257]
[1718582446364,1.44883271,66677.0,66676.0,0.00242257]
[1718582447913,1.74878571,66677.0,66676.0,0.00242257]
[1718582448124,1.44883271,66677.0,66676.0,0.00242257]
[1718582448324,1.6009205,66677.0,66676.0,0.00242257]
[1718582448532,1.53552262,66677.0,66676.0,0.00242257]
[1718582453609,1.54152562,66677.0,66676.0,0.00242257]
[1718582454016,1.54153351,66677.0,66676.0,0.00242257]
[1718582455453,1.60693139,66677.0,66676.0,0.00242257]
[1718582457073,0.60273972,66677.0,66676.0,0.00242257]
[1718582457277,0.65253972,66677.0,66676.0,0.00242257]
[1718582457422,0.95249272,66677.0,66676.0,0.00242257]
[1718582458086,1.25244572,66677.0,66676.0,0.00242257]
[1718582462639,1.29720547,66677.0,66676.0,0.00242257]
[1718582463241,1.25244572,66677.0,66676.0,0.00242257]
[1718582464086,1.31958535,66677.0,66676.0,0.00242257]
[1718582464287,1.25244572,66677.0,66676.0,0.00242257]
[1718582464690,1.31958535,66677.0,66676.0,0.00242257]
[1718582465092,1.45538535,66677.0,66676.0,0.00242257]
[1718582465330,1.47776523,66677.0,66676.0,0.00242257]
[1718582466728,1.38824572,66677.0,66676.0,0.00242257]
[1718582467739,1.50039697,66677.0,66676.0,0.00242257]
[1718582468400,1.44149697,66677.0,66676.0,0.00242257]
[1718582469431,1.32934572,66677.0,66676.0,0.00242257]
[1718582470173,1.44156282,66677.0,66676.0,0.00242257]
[1718582470374,1.32934572,66677.0,66676.0,0.00242257]
[1718582472081,1.22001743,66677.0,66676.0,0.00242257]
[1718582472280,1.24413477,66677.0,66676.0,0.00242257]
[1718582473690,1.24413177,66677.0,66676.0,0.00242257]
[1718582476096,1.30952965,66677.0,66676.0,0.00242257]
[1718582477325,1.90007044,66677.0,66676.0,0.00242257]
[1718582480472,1.83467256,66677.0,66676.0,0.00242257]
[1718582480649,1.90007044,66677.0,66676.0,0.00242257]
[1718582481712,1.83467256,66677.0,66676.0,0.00242257]
[1718582482689,1.90007044,66677.0,66676.0,0.00242257]
[1718582483035,1.83467256,66677.0,66676.0,0.00242257]
[1718582483651,1.89881253,66677.0,66676.0,0.00242257]
[1718582484895,1.83991253,66677.0,66676.0,0.00242257]
[1718582488773,1.90531041,66677.0,66676.0,0.00242257]
[1718582490803,1.90535386,66677.0,66676.0,0.00242257]
[1718582492222,1.83995598,66677.0,66676.0,0.00242257]
[1718582493336,1.76035598,66677.0,66676.0,0.00242257]
[1718582496053,1.30578576,66677.0,66676.0,0.14532257]
[1718582496265,0.08094076,66677.0,66676.0,0.34418945]
[1718582496434,0.08094076,66677.0,66676.0,1.11366381]
[1718582496435,0.03600151,66677.0,66676.0,1.11366381]
[1718582496641,0.01185,66677.0,66676.0,1.13666381]
[1718582497038,0.00485,66677.0,66676.0,1.26014342]
[1718582497244,0.00086,66679.0,66678.0,0.80194469]
[1718582497603,0.00086,66679.0,66678.0,1.66346859]
[1718582498552,0.00086,66679.0,66678.0,1.66346858]
[1718582499253,0.00086,66679.0,66678.0,1.66346051]
[1718582499434,0.00086,66679.0,66678.0,1.53898897]
[1718582500096,0.00086,66679.0,66678.0,1.54498897]
[1718582500299,0.00086,66679.0,66678.0,1.54898897]
[1718582501181,0.00086,66679.0,66678.0,1.68345437]
[1718582504694,0.00086,66679.0,66678.0,1.38350537]
[1718582504873,0.00086,66679.0,66678.0,0.94909097]
[1718582505679,0.00086,66679.0,66678.0,1.24903997]
[1718582506438,0.00086,66679.0,66678.0,0.94909097]
[1718582506588,0.00086,66679.0,66678.0,1.24903997]
[1718582512371,0.00086,66679.0,66678.0,0.94909097]
[1718582512553,0.00086,66679.0,66678.0,1.24903997]
[1718582516677,0.00086,66679.0,66678.0,0.49916797]
[1718582517608,0.00086,66679.0,66678.0,0.79911697]
[1718582517809,0.00086,66679.0,66678.0,0.49916797]
[1718582518016,0.00086,66679.0,66678.0,0.79911697]
[1718582518261,0.00086,66679.0,66678.0,0.94909097]
[1718582519027,0.00086,66679.0,66678.0,0.9316204]
[1718582519219,0.00086,66679.0,66678.0,0.32408018]
[1718582519438,0.00086,66679.0,66678.0,0.20366025]
[1718582519672,0.05066,66679.0,66678.0,0.20366025]
[1718582520412,0.05066,66679.0,66678.0,0.19766025]
[1718582521115,0.05066,66679.0,66678.0,0.20166025]
[1718582521457,0.05066,66679.0,66678.0,0.19766025]
[1718582521660,0.05066,66679.0,66678.0,0.23616489]
[1718582522069,0.05066,66679.0,66678.0,0.24016489]
[1718582522474,0.05066,66679.0,66678.0,0.23616489]
[1718582522881,0.05066,66679.0,66678.0,0.23516489]
[1718582523078,0.05066,66679.0,66678.0,0.23916489]
[1718582524403,0.05066,66679.0,66678.0,0.38913889]
[1718582524404,0.00086,66679.0,66678.0,0.38913889]
[1718582524609,0.00086,66679.0,66678.0,0.68908789]
[1718582525253,0.00086,66679.0,66678.0,0.81056283]
[1718582525461,0.00086,66679.0,66678.0,1.11051183]
[1718582525651,0.00086,66679.0,66678.0,0.81356283]
[1718582526010,0.00086,66679.0,66678.0,0.81056283]
[1718582526421,0.00086,66679.0,66678.0,0.51061383]
[1718582526625,0.00086,66679.0,66678.0,0.50661383]
[1718582526906,0.00086,66679.0,66678.0,1.25859962]
[1718582527124,0.00086,66679.0,66678.0,1.29559962]
[1718582527548,0.00086,66679.0,66678.0,1.28559962]
[1718582527951,0.00086,66679.0,66678.0,1.28859962]
[1718582528534,0.00086,66679.0,66678.0,1.58854862]
[1718582528896,0.00086,66679.0,66678.0,1.58854861]
[1718582529494,0.00086,66679.0,66678.0,1.29859961]
[1718582529882,0.00086,66679.0,66678.0,1.59854861]
[1718582530093,0.00086,66679.0,66678.0,1.29859961]
[1718582530341,0.00086,66679.0,66678.0,1.58853599]
[1718582530509,0.00086,66679.0,66678.0,1.29858699]
[1718582530814,0.00086,66679.0,66678.0,1.59853599]
[1718582531105,0.00086,66679.0,66678.0,1.58853599]
[1718582531309,0.00086,66679.0,66678.0,1.29858699]
[1718582531507,0.00086,66679.0,66678.0,1.2985883]
[1718582531774,0.00086,66679.0,66678.0,1.5985373]
[1718582532364,0.46862,66691.0,66690.0,0.03460212]
[1718582532561,0.0498,66692.0,66691.0,0.03460212]
[1718582532784,0.499629,66692.0,66691.0,0.00048755]
[1718582532992,0.499629,66692.0,66691.0,0.03508967]
[1718582533188,0.499629,66692.0,66691.0,0.00048755]
[1718582534038,0.799515,66692.0,66691.0,0.00048755]
[1718582534674,0.499629,66692.0,66691.0,0.01992357]
[1718582534876,0.449829,66692.0,66691.0,0.05552569]
[1718582535086,0.451829,66692.0,66691.0,0.05552569]
[1718582536054,0.464829,66692.0,66691.0,0.05652569]
[1718582536257,0.298843,66692.0,66691.0,0.02192357]
[1718582536469,0.298843,66692.0,66691.0,0.05652569]
[1718582536696,0.298843,66692.0,66691.0,0.03708967]
[1718582536889,0.239943,66692.0,66691.0,0.03708967]
[1718582537107,0.239943,66692.0,66691.0,0.03608967]
[1718582537281,0.237943,66692.0,66691.0,0.05356024]
[1718582537480,0.239943,66692.0,66691.0,0.05456024]
[1718582537707,0.239943,66692.0,66691.0,0.03708967]
[1718582538111,0.151943,66692.0,66691.0,0.03608967]
[1718582538328,0.163943,66692.0,66691.0,0.03708967]
[1718582538777,0.014,66692.0,66691.0,0.22495636]
[1718582538985,0.014,66692.0,66691.0,0.36255636]
[1718582539585,0.014,66692.0,66691.0,0.30095636]
[1718582540578,0.163943,66692.0,66691.0,0.05754079]
[1718582540993,0.163943,66692.0,66691.0,0.07501136]
[1718582541635,0.014,66692.0,66691.0,0.07501136]
[1718582545279,0.163943,66692.0,66691.0,0.05754079]
[1718582545480,0.463829,66692.0,66691.0,0.05754079]
[1718582545831,0.014,66692.0,66691.0,0.05754079]
[1718582546027,0.163943,66692.0,66691.0,0.05754079]
[1718582546190,0.163943,66692.0,66691.0,0.07501136]
[1718582546393,0.014,66692.0,66691.0,0.07501136]
[1718582547441,0.014,66692.0,66691.0,0.07594636]
[1718582547702,0.01485,66692.0,66691.0,0.07594636]
[1718582547921,0.01485,66692.0,66691.0,0.05549524]
[1718582548292,0.164793,66692.0,66691.0,0.03802467]
[1718582548496,0.01485,66692.0,66691.0,0.00342255]
[1718582548708,0.01485,66692.0,66691.0,0.03802467]
[1718582549117,0.164793,66692.0,66691.0,0.05549524]
[1718582549381,0.164793,66692.0,66691.0,0.08973956]
[1718582550321,0.01485,66692.0,66691.0,0.08973956]
[1718582551207,0.01485,66692.0,66691.0,0.07226899]
[1718582551461,0.01485,66692.0,66691.0,0.08973956]
[1718582553486,0.00985,66692.0,66691.0,0.08973956]
[1718582555063,0.459679,66692.0,66691.0,0.07226899]
[1718582555266,0.00985,66692.0,66691.0,0.08973956]
[1718582558486,0.00985,66692.0,66691.0,0.07226899]
[1718582558693,0.159793,66692.0,66691.0,0.07226899]
[1718582559139,0.159793,66692.0,66691.0,0.03802467]
[1718582561645,0.218693,66692.0,66691.0,0.00342255]
[1718582561848,1.193651,66692.0,66691.0,0.00342255]
[1718582562047,0.91193872,66692.0,66691.0,0.00342255]
[1718582562669,0.61205272,66692.0,66691.0,0.00342255]
[1718582562892,0.593879,66692.0,66691.0,0.00342255]
[1718582563017,0.61204667,66692.0,66691.0,0.00342255]
[1718582563221,0.593879,66692.0,66691.0,0.00342255]
[1718582566479,0.893765,66692.0,66691.0,0.00342255]
[1718582567214,0.593879,66692.0,66691.0,0.00342255]
[1718582567579,0.91192667,66692.0,66691.0,0.00342255]
[1718582567782,0.893765,66692.0,66691.0,0.00342255]
[1718582567984,0.643679,66692.0,66691.0,0.03802467]
[1718582568390,0.643679,66692.0,66691.0,0.00342255]
[1718582568639,0.643679,66692.0,66691.0,0.03802467]
[1718582569351,0.943565,66692.0,66691.0,0.00342255]
[1718582569523,0.643679,66692.0,66691.0,0.00342255]
[1718582570127,0.64620843,66692.0,66691.0,0.00342255]
[1718582570333,0.643679,66692.0,66691.0,0.00342255]
[1718582571479,0.643679,66692.0,66691.0,0.03802467]
[1718582571889,0.643679,66692.0,66691.0,0.00342255]
[1718582574901,0.64620843,66692.0,66691.0,0.00342255]
[1718582575771,0.643679,66692.0,66691.0,0.00342255]
[1718582576422,0.64620843,66692.0,66691.0,0.00342255]
[1718582576636,0.643679,66692.0,66691.0,0.00342255]
[1718582578029,0.64620843,66692.0,66691.0,0.00342255]
[1718582578459,0.643679,66692.0,66691.0,0.00342255]
[1718582578914,0.584779,66692.0,66691.0,0.00342255]
[1718582580153,0.509479,66692.0,66691.0,0.03802467]
[1718582580361,0.509479,66692.0,66691.0,0.05125419]
[1718582580564,0.509479,66692.0,66691.0,0.01665207]
[1718582582041,0.509479,66692.0,66691.0,0.00342255]
[1718582587403,0.51200843,66692.0,66691.0,0.00342255]
[1718582587637,0.509479,66692.0,66691.0,0.00342255]
[1718582587989,0.51200843,66692.0,66691.0,0.00342255]
[1718582588601,0.82980977,66692.0,66691.0,0.00342255]
[1718582588807,0.52992377,66692.0,66691.0,0.00342255]
[1718582589388,0.51200843,66692.0,66691.0,0.00342255]
[1718582589922,0.52991102,66692.0,66691.0,0.00342255]
[1718582590320,0.82979702,66692.0,66691.0,0.00342255]
[1718582590983,0.52991102,66692.0,66691.0,0.00342255]
[1718582591361,0.82979702,66692.0,66691.0,0.00342255]
[1718582592614,0.52991102,66692.0,66691.0,0.00342255]
[1718582592808,0.82979702,66692.0,66691.0,0.00342255]
[1718582593011,0.82967158,66692.0,66691.0,0.00342255]
[1718582594031,0.81189443,66692.0,66691.0,0.00342255]
[1718582594232,0.82957887,66692.0,66691.0,0.00342255]
[1718582596272,0.8295583,66692.0,66691.0,0.00342255]
[1718582596674,0.87453732,66692.0,66691.0,0.00342255]
[1718582598303,1.182269,66692.0,66691.0,0.00342255]
[1718582598502,1.9708205,66692.0,66691.0,0.00342255]
[1718582598706,1.85837293,66692.0,66691.0,0.00342255]
[1718582598930,1.92377081,66692.0,66691.0,0.00342255]
[1718582599308,1.78232904,66692.0,66691.0,0.00342255]
[1718582600948,1.84772692,66692.0,66691.0,0.00342255]
[1718582604261,1.96009142,66692.0,66691.0,0.00342255]
[1718582606595,1.89469354,66692.0,66691.0,0.00342255]
[1718582606794,1.84489354,66692.0,66691.0,0.00342255]
[1718582607026,1.25441975,66692.0,66691.0,0.00342255]
[1718582607155,1.46183337,66692.0,66691.0,0.00342255]
[1718582607364,1.19685119,66692.0,66691.0,0.01761481]
[1718582608648,1.49673719,66692.0,66691.0,0.00342255]
[1718582608849,1.72448913,66692.0,66691.0,0.00342255]
[1718582609010,1.81436155,66692.0,66691.0,0.00342255]
[1718582609932,1.87975943,66692.0,66691.0,0.00342255]
[1718582610711,1.81436155,66692.0,66691.0,0.00342255]
[1718582614709,2.11424755,66692.0,66691.0,0.00342255]
[1718582615557,1.81436155,66692.0,66691.0,0.00342255]
[1718582616506,1.39208733,66692.0,66691.0,0.00342255]
[1718582616738,1.72449906,66692.0,66691.0,0.00342255]
[1718582617165,1.39208733,66692.0,66691.0,0.00342255]
[1718582617382,1.34228733,66692.0,66691.0,0.00342255]
[1718582617581,1.72450048,66692.0,66691.0,0.00342255]
[1718582622451,1.87977078,66692.0,66691.0,0.00342255]
[1718582622629,1.8143729,66692.0,66691.0,0.00342255]
[1718582623212,1.87977078,66692.0,66691.0,0.00342255]
[1718582625711,1.8143729,66692.0,66691.0,0.00342255]
[1718582626546,1.87977078,66692.0,66691.0,0.00342255]
[1718582626744,1.7645729,66692.0,66691.0,0.00342255]
[1718582626940,1.8143729,66692.0,66691.0,0.00342255]
[1718582627136,1.87977078,66692.0,66691.0,0.00342255]
[1718582627822,2.17965678,66692.0,66691.0,0.00342255]
[1718582628236,1.8143729,66692.0,66691.0,0.00342255]
[1718582629568,1.8143729,66692.0,66691.0,0.0116948]
[1718582629778,1.59510356,66692.0,66691.0,0.0116948]
[1718582629980,1.73477412,66692.0,66691.0,0.00342255]
[1718582630806,1.71030144,66692.0,66691.0,0.00342255]
[1718582630981,1.80017814,66692.0,66691.0,0.00342255]
[1718582631381,2.23506414,66692.0,66691.0,0.00342255]
[1718582631582,2.14518744,66692.0,66691.0,0.00342255]
[1718582631787,2.25752564,66692.0,66691.0,0.00342255]
[1718582631984,2.14518744,66692.0,66691.0,0.00342255]
[1718582632421,1.05228743,66682.0,66681.0,0.1384]
[1718582632576,0.45244543,66679.0,66678.0,0.04946029]
[1718582632959,0.75241143,66677.0,66676.0,0.139335]
[1718582633176,1.11496322,66677.0,66676.0,0.139335]
[1718582633347,1.0700283,66677.0,66676.0,0.139335]
[1718582634536,1.0720283,66677.0,66676.0,0.139335]
[1718582634739,1.0700283,66677.0,66676.0,0.139335]
[1718582635138,1.0720283,66677.0,66676.0,0.139335]
[1718582635761,1.0780283,66677.0,66676.0,0.139335]
[1718582636312,1.1278283,66677.0,66676.0,0.139335]
[1718582636616,1.0780283,66677.0,66676.0,0.139335]
[1718582636767,1.1278283,66677.0,66676.0,0.139335]
[1718582636967,1.11016443,66677.0,66676.0,0.139335]
[1718582638076,1.11016443,66677.0,66676.0,0.000935]
[1718582638359,1.06036443,66677.0,66676.0,0.082835]
[1718582638707,1.11016443,66677.0,66676.0,0.082835]
[1718582642210,1.057835,66677.0,66676.0,0.144035]
[1718582642425,0.008,66677.0,66676.0,0.158412]
[1718582642668,0.008,66677.0,66676.0,0.21048469]
[1718582642948,0.0578,66677.0,66676.0,0.36046369]
[1718582643161,0.008,66677.0,66676.0,0.36046369]
[1718582643371,0.207776,66677.0,66676.0,0.19301412]
[1718582643855,0.207776,66677.0,66676.0,0.21048469]
[1718582644078,0.17800456,66677.0,66676.0,0.21048469]
[1718582644327,0.07782856,66677.0,66676.0,0.21048469]
[1718582644946,0.02802856,66677.0,66676.0,0.21048469]
[1718582645118,0.07782856,66677.0,66676.0,0.21048469]
[1718582645324,0.07782856,66677.0,66676.0,0.19610769]
[1718582645771,0.07782856,66677.0,66676.0,0.17863712]
[1718582646533,0.07782856,66677.0,66676.0,0.19610769]
[1718582647554,0.07782856,66677.0,66676.0,0.66904469]
[1718582647555,0.008,66677.0,66676.0,0.66904469]
[1718582647775,0.0578,66677.0,66676.0,0.66904469]
[1718582648051,0.0578,66677.0,66676.0,0.73604266]
[1718582648263,0.0578,66677.0,66676.0,0.73636774]
[1718582650348,0.008,66677.0,66676.0,0.73636774]
[1718582650765,0.0578,66677.0,66676.0,0.66936977]
[1718582652195,0.807682,66677.0,66676.0,0.14436008]
[1718582652394,0.507729,66677.0,66676.0,0.14436008]
[1718582652603,0.457929,66677.0,66676.0,0.14436008]
[1718582652807,0.507729,66677.0,66676.0,0.14436008]
[1718582654112,0.457929,66677.0,66676.0,0.14436008]
[1718582654309,0.507729,66677.0,66676.0,0.19695192]
[1718582654670,0.008,66677.0,66676.0,0.19695192]
[1718582654873,0.008,66677.0,66676.0,0.36440149]
[1718582655075,0.357753,66677.0,66676.0,0.1853498]
[1718582655347,0.507729,66677.0,66676.0,0.1623498]
[1718582655618,0.807682,66677.0,66676.0,0.1623498]
[1718582656273,1.107635,66677.0,66676.0,0.14436008]
[1718582656475,0.807682,66677.0,66676.0,0.14436008]
[1718582656645,1.107635,66677.0,66676.0,0.14436008]
[1718582656869,1.11016443,66677.0,66676.0,0.00126008]
[1718582657352,1.41011743,66677.0,66676.0,0.00126008]
[1718582657980,1.45504128,66677.0,66676.0,0.00126008]
[1718582658452,1.41011743,66677.0,66676.0,0.00126008]
[1718582663650,1.47747063,66677.0,66676.0,0.00126008]
[1718582663861,1.48347363,66677.0,66676.0,0.00126008]
[1718582664066,1.56157363,66677.0,66676.0,0.00126008]
[1718582666152,1.49422043,66677.0,66676.0,0.00126008]
[1718582666965,1.91651122,66677.0,66676.0,0.00126008]
[1718582667327,1.82670695,66677.0,66676.0,0.00126008]
[1718582667515,1.9367626,66677.0,66676.0,0.00126008]
[1718582668298,2.00216048,66677.0,66676.0,0.00126008]
[1718582668557,1.9367626,66677.0,66676.0,0.00126008]
[1718582669363,1.51447181,66677.0,66676.0,0.00126008]
[1718582669517,1.84695773,66677.0,66676.0,0.00126008]
[1718582672404,2.00215988,66677.0,66676.0,0.00126008]
[1718582673799,2.00365988,66677.0,66676.0,0.00126008]
[1718582674001,2.01385561,66677.0,66676.0,0.00126008]
[1718582674209,2.12611094,66677.0,66676.0,0.00126008]
[1718582675769,2.12609996,66677.0,66676.0,0.00126008]
[1718582675981,1.68136969,66677.0,66676.0,0.00126008]
[1718582676167,2.12609971,66677.0,66676.0,0.00126008]
[1718582677351,2.12610965,66677.0,66676.0,0.00126008]
[1718582678027,1.98111177,66677.0,66676.0,0.00126008]
[1718582678988,2.68385044,66677.0,66676.0,0.00126008]
[1718582679298,2.68385044,66677.0,66665.0,0.04962167]
[1718582679299,1.41133943,66671.0,66665.0,0.04962167]
[1718582679527,2.08225911,66671.0,66665.0,0.04962167]
[1718582679748,2.27001653,66671.0,66663.0,0.1468]
[1718582679984,2.32001653,66671.0,66663.0,0.0809]
[1718582680187,2.38541441,66671.0,66663.0,0.0809]
[1718582680601,2.02003653,66671.0,66663.0,0.0809]
[1718582680804,2.03203653,66671.0,66670.0,0.00124573]
[1718582681031,2.09743441,66671.0,66670.0,0.00124573]
[1718582681745,2.02603653,66671.0,66670.0,0.00024573]
[1718582681956,2.09143441,66671.0,66670.0,0.00024573]
[1718582682165,2.09743441,66671.0,66670.0,0.00124573]
[1718582682988,2.11143441,66671.0,66670.0,0.00124573]
[1718582683366,2.22357388,66671.0,66670.0,0.00124573]
[1718582684527,2.16467388,66671.0,66670.0,0.00124573]
[1718582685130,2.099276,66671.0,66670.0,0.00124573]
[1718582685332,1.98713653,66671.0,66670.0,0.00124573]
[1718582686129,2.099276,66671.0,66670.0,0.00124573]
[1718582686335,1.98713653,66671.0,66670.0,0.00124573]
[1718582686543,2.06282432,66671.0,66670.0,0.00124573]
[1718582686758,2.06282432,66671.0,66663.0,0.0788]
[1718582686759,1.35258343,66664.0,66663.0,0.0788]
[1718582686981,1.50238343,66664.0,66663.0,0.0788]
[1718582687177,1.05260243,66662.0,66661.0,0.0659]
[1718582687395,1.15260243,66662.0,66661.0,0.0659]
[1718582688669,1.15260243,66662.0,66661.0,0.08063826]
[1718582688869,1.15860243,66662.0,66661.0,0.08163826]
[1718582689885,1.16560243,66662.0,66661.0,0.08163826]
[1718582690489,1.16560243,66662.0,66661.0,0.0669]
[1718582692818,1.46562343,66662.0,66661.0,0.001]
[1718582693335,1.52274252,66662.0,66661.0,0.0773]
[1718582694020,1.22019209,66662.0,66661.0,0.1373]
[1718582694244,1.21540243,66662.0,66661.0,0.1373]
[1718582694484,1.212873,66662.0,66661.0,0.1373]
[1718582694702,1.21540243,66662.0,66661.0,0.1373]
[1718582696109,1.212873,66662.0,66661.0,0.15129826]
[1718582696566,0.0589,66660.0,66641.0,0.03554812]
[1718582696785,0.50267443,66645.0,66641.0,0.000946]
[1718582697027,0.50267443,66645.0,66636.0,0.009405]
[1718582697028,1.100465,66637.0,66636.0,0.00679568]
[1718582697224,1.05299443,66637.0,66636.0,0.00679568]
[1718582697431,1.10299443,66637.0,66636.0,0.00679568]
[1718582697651,1.20299443,66637.0,66636.0,0.00679568]
[1718582697911,1.20279443,66637.0,66636.0,0.00679568]
[1718582698131,1.20279443,66637.0,66636.0,0.01631575]
[1718582698132,0.90266143,66637.0,66636.0,0.01631575]
[1718582698587,0.90266143,66637.0,66636.0,0.01731575]
[1718582698588,0.91666143,66637.0,66636.0,0.01731575]
[1718582699048,0.86686143,66637.0,66636.0,0.01731575]
[1718582699255,0.91666143,66637.0,66636.0,0.01731575]
[1718582699838,1.21679443,66637.0,66636.0,0.01731575]
[1718582700038,1.21679443,66637.0,66636.0,0.00779568]
[1718582700809,1.23079443,66637.0,66636.0,0.00779568]
[1718582701227,1.18099443,66637.0,66636.0,0.00779568]
[1718582701429,1.23079443,66637.0,66636.0,0.00779568]
[1718582701633,0.128,66637.0,66636.0,0.1036978]
[1718582701831,0.028,66637.0,66636.0,0.69263271]
[1718582702050,0.028,66637.0,66636.0,1.1448585]
[1718582702408,0.028,66637.0,66636.0,1.1548585]
[1718582702612,0.46862,66648.0,66647.0,0.19417269]
[1718582702813,0.46862,66648.0,66647.0,0.24359976]
[1718582702925,0.968546,66648.0,66647.0,0.19152707]
[1718582703123,1.26863,66648.0,66647.0,0.1421]
[1718582703326,1.26863,66648.0,66647.0,0.19417269]
[1718582703327,0.51842,66648.0,66647.0,0.19417269]
[1718582703532,0.46862,66648.0,66647.0,0.21717269]
[1718582703828,0.46862,66648.0,66647.0,0.25389486]
[1718582704376,0.48162,66648.0,66647.0,0.25389486]
[1718582704579,0.48262,66648.0,66647.0,0.25389486]
[1718582704965,0.48362,66648.0,66647.0,0.25389486]
[1718582705163,0.46862,66648.0,66647.0,0.25389486]
[1718582705367,0.150035,66651.0,66647.0,0.25389486]
[1718582705586,0.150035,66651.0,66650.0,0.05207269]
[1718582705965,0.150035,66651.0,66650.0,0.07507269]
[1718582706689,0.150033,66652.0,66650.0,0.07507269]
[1718582706861,0.150029,66654.0,66653.0,0.05207269]
[1718582707040,0.250028,66654.0,66653.0,0.05207269]
[1718582707254,0.550085,66654.0,66653.0,0.07862339]
[1718582707460,0.550085,66654.0,66650.0,0.026]
[1718582707461,0.25208779,66654.0,66622.0,0.02000078]
[1718582707701,0.25208779,66654.0,66611.0,0.13461988]
[1718582707702,0.04479287,66641.0,66625.0,0.45626336]
[1718582707882,0.04479287,66641.0,66609.0,0.02]
[1718582707883,0.74870346,66641.0,66640.0,0.04981561]
[1718582708083,0.150077,66633.0,66628.0,0.0130069]
[1718582708292,0.1249,66643.0,66626.0,0.15609422]
[1718582708293,0.150078,66632.0,66626.0,0.15609422]
[1718582708502,0.15008,66631.0,66626.0,0.00600322]
[1718582708727,0.15009,66627.0,66624.0,0.009405]
[1718582709132,0.150085,66629.0,66625.0,0.001]
[1718582709377,0.150085,66629.0,66626.0,0.03125938]